fUSD/lending_fUSD_20250111
["ID","MTS","AMOUNT","RATE_DAILY","PERIOD"]
[348500067,1736589048770,-500.0,9.896e-05,2]
[348500068,1736589048779,-500.0,9.896e-05,2]
[348500069,1736589048788,-500.0,9.896e-05,2]
[348500070,1736589048797,-500.0,9.896e-05,2]
[348500071,1736589048810,-500.0,9.896e-05,2]
[348500072,1736589048819,-500.0,9.896e-05,2]
[348500073,1736589048828,-500.0,9.896e-05,2]
[348500074,1736589048837,-500.0,9.896e-05,2]
[348500075,1736589048847,-500.0,9.896e-05,2]
[348500076,1736589048856,-551.53,9.896e-05,2]
[348500077,1736589048865,-500.0,9.896e-05,2]
[348500078,1736589048874,-500.0,9.896e-05,2]
[348500079,1736589048884,-502.17372514,9.896e-05,2]
[348500080,1736589048894,-503.20406956,9.896e-05,2]
[348500081,1736589048903,-507.36781816,9.896e-05,2]
[348500082,1736589048912,-500.0,9.896e-05,2]
[348500083,1736589048921,-500.0,9.896e-05,2]
[348500084,1736589048930,-500.0,9.896e-05,2]
[348500085,1736589048939,-500.0,9.896e-05,2]
[348500086,1736589048948,-500.0,9.896e-05,2]
[348500087,1736589048957,-502.35431139,9.896e-05,2]
[348500088,1736589048966,-2441.03,9.896e-05,2]
[348500089,1736589048976,-500.0,9.896e-05,2]
[348500090,1736589048986,-503.18094507,9.896e-05,2]
[348500091,1736589048995,-500.0,9.896e-05,2]
[348500092,1736589049005,-500.0,9.896e-05,2]
[348500093,1736589049014,-501.77147756,9.896e-05,2]
[348500094,1736589049023,-500.0,9.896e-05,2]
[348500095,1736589049032,-500.0,9.896e-05,2]
[348500096,1736589049041,-500.0,9.896e-05,2]
[348500097,1736589049050,-501.52462586,9.896e-05,2]
[348500098,1736589049059,-646.54133657,9.896e-05,2]
[348500099,1736589049068,-506.16476273,9.896e-05,2]
[348500100,1736589049077,-500.0,9.896e-05,2]
[348500101,1736589049087,-1838.91,9.896e-05,2]
[348500102,1736589049096,-508.04793263,9.896e-05,2]
[348500103,1736589049105,-504.40265872,9.896e-05,2]
[348500104,1736589049114,-500.0,9.896e-05,2]
[348500105,1736589049123,-500.0,9.896e-05,2]
[348500106,1736589049132,-446.78726297,9.896e-05,2]
[348500107,1736589049144,-64.17869178,9.896e-05,2]
[348500108,1736589049154,-500.0,9.896e-05,2]
[348500109,1736589049163,-500.0,9.896e-05,2]
[348500110,1736589049172,-500.0,9.896e-05,2]
[348500111,1736589049181,-500.0,9.896e-05,2]
[348500112,1736589049191,-500.0,9.896e-05,2]
[348500113,1736589049200,-503.69329151,9.896e-05,2]
[348500114,1736589049209,-500.0,9.896e-05,2]
[348500115,1736589049218,-649.59,9.896e-05,2]
[348500116,1736589049228,-503.7449619,9.896e-05,2]
[348500117,1736589049237,-500.0,9.896e-05,2]
[348500118,1736589049247,-502.11120609,9.896e-05,2]
[348500119,1736589049256,-512.34034123,9.896e-05,2]
[348500120,1736589049266,-500.0,9.896e-05,2]
[348500121,1736589049276,-500.0,9.896e-05,2]
[348500122,1736589049285,-500.0,9.896e-05,2]
[348500123,1736589049295,-505.65404367,9.896e-05,2]
[348500124,1736589049306,-758.87,9.896e-05,2]
[348500125,1736589049316,-500.0,9.896e-05,2]
[348500126,1736589049326,-1062.16,9.896e-05,2]
[348500127,1736589049337,-505.26465317,9.896e-05,2]
[348500128,1736589049346,-501.71735008,9.896e-05,2]
[348500129,1736589049356,-502.25437253,9.896e-05,2]
[348500130,1736589049366,-504.04881179,9.896e-05,2]
[348500131,1736589049376,-500.0,9.896e-05,2]
[348500132,1736589049386,-500.0,9.896e-05,2]
[348500133,1736589049396,-500.0,9.896e-05,2]
[348500134,1736589049406,-591.83,9.896e-05,2]
[348500135,1736589049416,-636.62,9.896e-05,2]
[348500136,1736589049426,-500.0,9.896e-05,2]
[348500137,1736589049436,-502.07311012,9.896e-05,2]
[348500138,1736589049446,-500.0,9.896e-05,2]
[348500139,1736589049455,-500.0,9.896e-05,2]
[348500140,1736589049465,-500.0,9.896e-05,2]
[348500141,1736589049475,-500.0,9.896e-05,2]
[348500142,1736589049484,-503.37653979,9.896e-05,2]
[348500143,1736589049494,-500.0,9.896e-05,2]
[348500144,1736589049503,-500.0,9.896e-05,2]
[348500145,1736589049513,-500.0,9.896e-05,2]
[348500146,1736589049522,-500.61894343,9.896e-05,2]
[348500147,1736589049531,-500.0,9.896e-05,2]
[348500148,1736589049539,-199.91898115,9.896e-05,2]
[348500149,1736589049548,-500.0,9.896e-05,2]
[348500150,1736589049557,-500.0,9.896e-05,2]
[348500151,1736589049566,-502.80754579,9.896e-05,2]
[348500152,1736589049575,-500.0,9.896e-05,2]
[348500153,1736589049585,-500.0,9.896e-05,2]
[348500154,1736589049594,-503.14073795,9.896e-05,2]
[348500155,1736589049603,-1191.77,9.896e-05,2]
[348500156,1736589049612,-500.31079362,9.896e-05,2]
[348500157,1736589049622,-500.0,9.896e-05,2]
[348500158,1736589049631,-500.0,9.896e-05,2]
[348500159,1736589049641,-500.0,9.896e-05,2]
[348500160,1736589049649,-500.0,9.896e-05,2]
[348500161,1736589049659,-503.00310706,9.896e-05,2]
[348500162,1736589049668,-500.27178504,9.896e-05,2]
[348500163,1736589049677,-568.03258594,9.896e-05,2]
[348500164,1736589049686,-500.0,9.896e-05,2]
[348500165,1736589049696,-500.0,9.896e-05,2]
[348500166,1736589049705,-500.0,9.896e-05,2]
[348500167,1736589049714,-501.68527858,9.896e-05,2]
[348500168,1736589049723,-500.0,9.896e-05,2]
[348500169,1736589049732,-500.0,9.896e-05,2]
[348500170,1736589049741,-501.61823194,9.896e-05,2]
[348500171,1736589049750,-501.70923752,9.896e-05,2]
[348500172,1736589049759,-553.14867904,9.896e-05,2]
[348500173,1736589049769,-502.02328248,9.896e-05,2]
[348500174,1736589049778,-500.0,9.896e-05,2]
[348500175,1736589049787,-500.0,9.896e-05,2]
[348500176,1736589049797,-500.0,9.896e-05,2]
[348500177,1736589049811,-505.68080658,9.896e-05,2]
[348500178,1736589049821,-500.0,9.896e-05,2]
[348500179,1736589049830,-500.0,9.896e-05,2]
[348500180,1736589049840,-500.0,9.896e-05,2]
[348500181,1736589049849,-557.51,9.896e-05,2]
[348500182,1736589049859,-1892.44,9.896e-05,2]
[348500183,1736589049868,-500.0,9.896e-05,2]
[348500184,1736589049878,-500.0,9.896e-05,2]
[348500185,1736589049887,-150.0,9.896e-05,2]
[348500186,1736589049897,-500.0,9.896e-05,2]
[348500187,1736589049906,-500.0,9.896e-05,2]
[348500188,1736589049916,-500.0,9.896e-05,2]
[348500189,1736589049925,-500.0,9.896e-05,2]
[348500190,1736589049935,-5000.0,9.896e-05,2]
[348500191,1736589049944,-500.0,9.896e-05,2]
[348500192,1736589049953,-500.0,9.896e-05,2]
[348500193,1736589049962,-500.0,9.896e-05,2]
[348500194,1736589049971,-500.0,9.896e-05,2]
[348500195,1736589049980,-500.0,9.896e-05,2]
[348500196,1736589049990,-158.776847,9.896e-05,2]
[348500197,1736589049999,-500.0,9.896e-05,2]
[348500198,1736589050009,-500.0,9.896e-05,2]
[348500199,1736589050019,-500.0,9.896e-05,2]
[348500200,1736589050028,-500.0,9.896e-05,2]
[348500201,1736589050037,-500.0,9.896e-05,2]
[348500202,1736589050046,-500.0,9.896e-05,2]
[348500203,1736589050055,-503.04561591,9.896e-05,2]
[348500204,1736589050065,-500.0,9.896e-05,2]
[348500205,1736589050074,-500.0,9.896e-05,2]
[348500206,1736589050083,-500.0,9.896e-05,2]
[348500207,1736589050092,-500.0,9.896e-05,2]
[348500208,1736589050102,-500.0,9.896e-05,2]
[348500209,1736589050111,-500.0,9.896e-05,2]
[348500210,1736589050120,-509.81,9.896e-05,2]
[348500211,1736589050129,-500.61985991,9.896e-05,2]
[348500212,1736589050138,-500.0,9.896e-05,2]
[348500213,1736589050147,-500.0,9.896e-05,2]
[348500214,1736589050157,-500.0,9.896e-05,2]
[348500215,1736589050166,-500.0,9.896e-05,2]
[348500216,1736589050175,-500.0,9.896e-05,2]
[348500217,1736589050184,-500.0,9.896e-05,2]
[348500218,1736589050193,-503.24745904,9.896e-05,2]
[348500219,1736589050203,-500.0,9.896e-05,2]
[348500220,1736589050212,-512.03,9.896e-05,2]
[348500221,1736589050221,-1028.1,9.896e-05,2]
[348500222,1736589050230,-500.0,9.896e-05,2]
[348500223,1736589050239,-500.0,9.896e-05,2]
[348500224,1736589050248,-500.0,9.896e-05,2]
[348500225,1736589050257,-500.0,9.896e-05,2]
[348500226,1736589050266,-500.0,9.896e-05,2]
[348500227,1736589050275,-500.0,9.896e-05,2]
[348500228,1736589050284,-500.0,9.896e-05,2]
[348500229,1736589050293,-500.0,9.896e-05,2]
[348500230,1736589050302,-500.0,9.896e-05,2]
[348500231,1736589050311,-500.0,9.896e-05,2]
[348500232,1736589050321,-419.91278811,9.896e-05,2]
[348500233,1736589050330,-500.0,9.896e-05,2]
[348500234,1736589050339,-1990.44,9.896e-05,2]
[348500235,1736589050348,-500.0,9.896e-05,2]
[348500236,1736589050358,-500.0,9.896e-05,2]
[348500237,1736589050367,-500.0,9.896e-05,2]
[348500238,1736589050376,-500.0,9.896e-05,2]
[348500239,1736589050385,-500.0,9.896e-05,2]
[348500240,1736589050394,-1663.49,9.896e-05,2]
[348500241,1736589050403,-580.78,9.896e-05,2]
[348500242,1736589050414,-703.56,9.896e-05,2]
[348500243,1736589050423,-706.77,9.896e-05,2]
[348500244,1736589050433,-1052.88,9.896e-05,2]
[348500245,1736589050442,-500.0,9.896e-05,2]
[348500246,1736589050451,-1019.68,9.896e-05,2]
[348500247,1736589050460,-500.0,9.897e-05,2]
[348500248,1736589050470,-500.0,9.897e-05,2]
[348500249,1736589050479,-758.87,9.897e-05,2]
[348500250,1736589050488,-500.0,9.897e-05,2]
[348500251,1736589050497,-1282.74,9.897e-05,2]
[348500252,1736589050507,-2633.6,9.897e-05,2]
[348500253,1736589050515,-500.0,9.897e-05,2]
[348500254,1736589050524,-500.0,9.897e-05,2]
[348500255,1736589050533,-1513.86,9.897e-05,2]
[348500256,1736589050543,-500.0,9.898e-05,2]
[348500257,1736589050552,-854.52,9.898e-05,2]
[348500258,1736589050561,-569.19,9.898e-05,2]
[348500259,1736589050571,-615.65,9.898e-05,2]
[348500260,1736589050580,-787.13,9.898e-05,2]
[348500261,1736589050589,-758.87,9.898e-05,2]
[348500262,1736589050598,-1440.28,9.898e-05,2]
[348500263,1736589050607,-652.32,9.898e-05,2]
[348500264,1736589050616,-532.16,9.898e-05,2]
[348500265,1736589050625,-500.0,9.898e-05,2]
[348500266,1736589050634,-500.0,9.898e-05,2]
[348500267,1736589050643,-640.6,9.898e-05,2]
[348500268,1736589050652,-500.0,9.898e-05,2]
[348500269,1736589050661,-500.0,9.898e-05,2]
[348500270,1736589050671,-500.0,9.898e-05,2]
[348500271,1736589050679,-500.0,9.898e-05,2]
[348500272,1736589050689,-591.7,9.898e-05,2]
[348500273,1736589050698,-620.7,9.898e-05,2]
[348500274,1736589050707,-500.0,9.899e-05,2]
[348500275,1736589050716,-500.0,9.899e-05,2]
[348500276,1736589050725,-756.63,9.899e-05,2]
[348500277,1736589050734,-552.28,9.899e-05,2]
[348500278,1736589050742,-667.02,9.899e-05,2]
[348500279,1736589050751,-500.0,9.899e-05,2]
[348500280,1736589050761,-1000.0,9.899e-05,2]
[348500281,1736589050770,-500.0,9.899e-05,2]
[348500282,1736589050779,-500.0,9.899e-05,2]
[348500283,1736589050788,-1193.75,9.899e-05,2]
[348500284,1736589050798,-1940.73576686,9.9e-05,2]
[348500285,1736589050811,-1000.0,9.9e-05,2]
[348500286,1736589050820,-1623.54409392,9.907e-05,2]
[348500287,1736589050829,-150.848698,9.973e-05,2]
[348500288,1736589050838,-150.848698,9.973e-05,2]
[348500289,1736589050849,-160.838678,9.973e-05,2]
[348500290,1736589050858,-150.848698,9.973e-05,2]
[348500291,1736589050867,-151.847696,9.973e-05,2]
[348500292,1736589050876,-150.848698,9.973e-05,2]
[348500293,1736589050887,-159.83968,9.973e-05,2]
[348500294,1736589050897,-150.848698,9.973e-05,2]
[348500295,1736589050906,-160.838678,9.973e-05,2]
[348500296,1736589050915,-150.848698,9.973e-05,2]
[348500297,1736589050925,-151.847696,9.973e-05,2]
[348500298,1736589050935,-150.848698,9.973e-05,2]
[348500299,1736589050944,-159.83968,9.973e-05,2]
[348500300,1736589050954,-160.838678,9.973e-05,2]
[348500301,1736589050963,-150.848698,9.973e-05,2]
[348500302,1736589050972,-150.848698,9.973e-05,2]
[348500303,1736589050982,-159.83968,9.973e-05,2]
[348500304,1736589050991,-150.848698,9.973e-05,2]
[348500305,1736589051000,-152.846694,9.973e-05,2]
[348500306,1736589051009,-161.837676,9.973e-05,2]
[348500307,1736589051019,-150.848698,9.973e-05,2]
[348500308,1736589051028,-161317.0,9.997e-05,2]
[348500309,1736589051037,-609.0693624,9.998e-05,2]
[348500310,1736589051047,-758.87,9.998e-05,2]
[348500311,1736589051057,-758.87,9.998e-05,2]
[348500312,1736589051067,-250000.0,9.999e-05,2]
[348500313,1736589051076,-151.0,9.999e-05,2]
[348500314,1736589051085,-151.0,9.999e-05,2]
[348500315,1736589051094,-500.0,9.999e-05,2]
[348500316,1736589051104,-758.87,9.999e-05,2]
[348500317,1736589051114,-758.87,9.999e-05,2]
[348500318,1736589051123,-758.87,9.999e-05,2]
[348500319,1736589051132,-758.87,9.999e-05,2]
[348500320,1736589051142,-758.87,9.999e-05,2]
[348500321,1736589051151,-758.87,9.999e-05,2]
[348500322,1736589051160,-758.87,9.999e-05,2]
[348500323,1736589051169,-758.87,9.999e-05,2]
[348500324,1736589051179,-758.87,9.999e-05,2]
[348500325,1736589051188,-758.87,9.999e-05,2]
[348500326,1736589051198,-758.87,9.999e-05,2]
[348500327,1736589051207,-758.87,9.999e-05,2]
[348500328,1736589051216,-758.87,9.999e-05,2]
[348500329,1736589051225,-758.87,9.999e-05,2]
[348500330,1736589051235,-758.87,9.999e-05,2]
[348500331,1736589051244,-758.87,9.999e-05,2]
[348500332,1736589051254,-758.87,9.999e-05,2]
[348500333,1736589051263,-758.87,9.999e-05,2]
[348500334,1736589051272,-758.93,9.999e-05,2]
[348500335,1736589051281,-390494.39414465,0.0001,2]
[348500336,1736589051555,-263.21584521,0.0001,2]
[348500337,1736589051567,-3037.5,0.0001,2]
[348500338,1736589051578,-1256.74719578,0.0001,2]
[348500339,1736589051617,-78671.50490537,0.0001,2]
[348500340,1736589051629,-1201.89788993,0.0001,2]
[348500341,1736589303654,88.01834814,0.0001,30]
[348500342,1736589303691,75.98165186,0.0001,30]
[348500343,1736589410369,840.22,8.219e-05,2]
[348500344,1736589704467,3000.0,0.0002,120]
[348500345,1736589895673,-167.49,9.071e-05,2]
[348500346,1736590006226,250.0,9.052e-05,2]
[348500347,1736590169859,155.55,7.226e-05,2]
[348500349,1736590192939,1000.0,9.033e-05,2]
[348500350,1736590203671,164.0,0.0001,30]
[348500351,1736590232426,-409.26,9.104e-05,2]
[348500352,1736590232436,-382.62,9.161e-05,2]
[348500353,1736590232445,-500.0,9.664e-05,2]
[348500354,1736590232455,-104.62221221,9.7e-05,2]
[348500355,1736590232466,-330.23018751,9.7e-05,2]
[348500356,1736590232477,-565.14760028,9.7e-05,2]
[348500357,1736590232487,-307.66677444,9.722e-05,2]
[348500358,1736590232497,-575.36588961,9.722e-05,2]
[348500359,1736590232509,-6479.90187634,9.722e-05,2]
[348500360,1736590232519,-300.0,9.722e-05,2]
[348500361,1736590232528,-81.93410182,9.723e-05,2]
[348500362,1736590232550,-374.684,9.723e-05,2]
[348500363,1736590232562,-1164.44999995,9.723e-05,2]
[348500364,1736590232780,-13196.13653411,9.723e-05,2]
[348500370,1736590238322,-3141.64213195,9.723e-05,2]
[348500371,1736590238334,-11959.76824472,9.723e-05,2]
[348500372,1736590238431,-81.38498745,9.723e-05,2]
[348500373,1736590238440,-490.1705,9.795e-05,2]
[348500374,1736590238449,-2937.8253,9.795e-05,2]
[348500375,1736590238459,-5000.0,9.795e-05,2]
[348500376,1736590238468,-7943.90950235,9.8e-05,2]
[348500377,1736590238479,-22151.19859314,9.8e-05,2]
[348500378,1736590238490,-22452.15067065,9.8e-05,2]
[348500379,1736590238501,-747.50399139,9.8e-05,2]
[348500380,1736590238512,-500.0,9.8e-05,2]
[348500381,1736590238523,-61246.35047651,9.8e-05,2]
[348500382,1736590238532,-1000.0,9.8e-05,2]
[348500383,1736590238541,-1376.31,9.893e-05,2]
[348500384,1736590238550,-500.0,9.893e-05,2]
[348500385,1736590238559,-1151.82,9.893e-05,2]
[348500386,1736590238568,-692.61,9.893e-05,2]
[348500387,1736590238577,-1433.94,9.893e-05,2]
[348500388,1736590238586,-4254.44,9.893e-05,2]
[348500389,1736590238595,-500.0,9.893e-05,2]
[348500390,1736590238604,-500.0,9.893e-05,2]
[348500391,1736590238613,-760.11,9.893e-05,2]
[348500392,1736590238623,-1140.13,9.893e-05,2]
[348500393,1736590238632,-1942.34,9.893e-05,2]
[348500394,1736590238641,-1480.23,9.893e-05,2]
[348500395,1736590238650,-500.0,9.893e-05,2]
[348500396,1736590238659,-500.0,9.893e-05,2]
[348500397,1736590238668,-1469.46,9.893e-05,2]
[348500398,1736590238677,-2688.72,9.893e-05,2]
[348500399,1736590238686,-763.93,9.893e-05,2]
[348500400,1736590238695,-711.4,9.893e-05,2]
[348500401,1736590238705,-1032.52,9.893e-05,2]
[348500402,1736590238714,-500.0,9.893e-05,2]
[348500403,1736590238723,-640.54,9.893e-05,2]
[348500404,1736590238732,-500.0,9.893e-05,2]
[348500405,1736590238742,-500.0,9.893e-05,2]
[348500406,1736590238751,-1816.11,9.893e-05,2]
[348500408,1736590238760,-1306.65,9.893e-05,2]
[348500410,1736590238770,-500.0,9.893e-05,2]
[348500412,1736590238779,-500.0,9.893e-05,2]
[348500413,1736590238789,-950.13,9.893e-05,2]
[348500415,1736590238799,-500.0,9.893e-05,2]
[348500417,1736590238808,-500.0,9.893e-05,2]
[348500419,1736590238817,-635.09,9.893e-05,2]
[348500421,1736590238826,-543.51,9.893e-05,2]
[348500424,1736590238835,-500.0,9.893e-05,2]
[348500426,1736590238844,-500.0,9.893e-05,2]
[348500428,1736590238853,-500.0,9.893e-05,2]
[348500431,1736590238863,-500.0,9.893e-05,2]
[348500435,1736590238873,-500.0,9.893e-05,2]
[348500439,1736590238883,-876.9,9.893e-05,2]
[348500442,1736590238892,-500.0,9.893e-05,2]
[348500445,1736590238901,-467.585064,9.894e-05,2]
[348500448,1736590238911,-500.0,9.894e-05,2]
[348500451,1736590238920,-500.0,9.894e-05,2]
[348500454,1736590238929,-500.0,9.894e-05,2]
[348500456,1736590238938,-500.0,9.894e-05,2]
[348500458,1736590238947,-500.0,9.894e-05,2]
[348500460,1736590238957,-500.0,9.894e-05,2]
[348500462,1736590238966,-500.0,9.894e-05,2]
[348500464,1736590238974,-541.34450744,9.894e-05,2]
[348500466,1736590238984,-375.02871436,9.894e-05,2]
[348500468,1736590238994,-500.0,9.894e-05,2]
[348500470,1736590239003,-500.0,9.894e-05,2]
[348500471,1736590239011,-500.0,9.894e-05,2]
[348500472,1736590239249,-500.0,9.894e-05,2]
[348500473,1736590239258,-500.0,9.894e-05,2]
[348500474,1736590239268,-500.0,9.894e-05,2]
[348500475,1736590239277,-500.0,9.894e-05,2]
[348500476,1736590239286,-500.0,9.894e-05,2]
[348500477,1736590239295,-500.0,9.894e-05,2]
[348500478,1736590239304,-500.0,9.894e-05,2]
[348500479,1736590239313,-500.0,9.894e-05,2]
[348500480,1736590239323,-500.0,9.894e-05,2]
[348500481,1736590239332,-500.0,9.894e-05,2]
[348500482,1736590239341,-500.0,9.894e-05,2]
[348500483,1736590239350,-500.0,9.894e-05,2]
[348500484,1736590239359,-500.0,9.894e-05,2]
[348500485,1736590239367,-500.0,9.894e-05,2]
[348500486,1736590239377,-500.0,9.894e-05,2]
[348500487,1736590239386,-500.0,9.894e-05,2]
[348500488,1736590239395,-500.0,9.894e-05,2]
[348500489,1736590239404,-500.0,9.894e-05,2]
[348500490,1736590239414,-500.0,9.894e-05,2]
[348500491,1736590239423,-500.0,9.894e-05,2]
[348500492,1736590239432,-889.2,9.894e-05,2]
[348500493,1736590239441,-500.0,9.894e-05,2]
[348500494,1736590239451,-500.0,9.894e-05,2]
[348500495,1736590239459,-500.0,9.894e-05,2]
[348500496,1736590239469,-500.0,9.894e-05,2]
[348500497,1736590239478,-500.0,9.894e-05,2]
[348500498,1736590239487,-500.0,9.894e-05,2]
[348500499,1736590239496,-500.0,9.894e-05,2]
[348500500,1736590239505,-500.0,9.894e-05,2]
[348500501,1736590239516,-500.0,9.894e-05,2]
[348500502,1736590239525,-500.0,9.894e-05,2]
[348500503,1736590239534,-500.0,9.894e-05,2]
[348500504,1736590239543,-500.0,9.894e-05,2]
[348500505,1736590239553,-500.0,9.894e-05,2]
[348500506,1736590239562,-500.0,9.894e-05,2]
[348500507,1736590239571,-500.0,9.894e-05,2]
[348500508,1736590239581,-500.0,9.894e-05,2]
[348500509,1736590239590,-500.0,9.894e-05,2]
[348500510,1736590239599,-500.0,9.894e-05,2]
[348500511,1736590239608,-542.59135245,9.894e-05,2]
[348500512,1736590239617,-500.0,9.894e-05,2]
[348500513,1736590239626,-500.0,9.894e-05,2]
[348500514,1736590239635,-500.0,9.894e-05,2]
[348500515,1736590239644,-500.0,9.894e-05,2]
[348500516,1736590239653,-500.0,9.894e-05,2]
[348500517,1736590239662,-500.0,9.894e-05,2]
[348500518,1736590239672,-500.0,9.894e-05,2]
[348500519,1736590239681,-207.33211755,9.894e-05,2]
[348500520,1736590239692,-500.0,9.894e-05,2]
[348500521,1736590239702,-500.0,9.894e-05,2]
[348500522,1736590239711,-500.0,9.894e-05,2]
[348500523,1736590239721,-500.0,9.894e-05,2]
[348500524,1736590239735,-500.0,9.894e-05,2]
[348500525,1736590239744,-500.0,9.894e-05,2]
[348500526,1736590239753,-500.0,9.894e-05,2]
[348500527,1736590239763,-500.0,9.894e-05,2]
[348500528,1736590239775,-500.0,9.894e-05,2]
[348500529,1736590239785,-500.0,9.894e-05,2]
[348500530,1736590239794,-500.0,9.894e-05,2]
[348500531,1736590239804,-500.0,9.894e-05,2]
[348500532,1736590239814,-500.0,9.894e-05,2]
[348500533,1736590239823,-500.0,9.894e-05,2]
[348500534,1736590239832,-500.0,9.894e-05,2]
[348500535,1736590239843,-500.0,9.894e-05,2]
[348500536,1736590239853,-500.0,9.894e-05,2]
[348500537,1736590239862,-500.0,9.894e-05,2]
[348500538,1736590239871,-500.0,9.894e-05,2]
[348500539,1736590239881,-500.0,9.894e-05,2]
[348500540,1736590239890,-500.0,9.894e-05,2]
[348500541,1736590239900,-500.0,9.894e-05,2]
[348500542,1736590239909,-500.0,9.894e-05,2]
[348500543,1736590239919,-500.0,9.894e-05,2]
[348500544,1736590239929,-500.0,9.894e-05,2]
[348500545,1736590239938,-500.0,9.894e-05,2]
[348500546,1736590239948,-500.0,9.894e-05,2]
[348500547,1736590239957,-500.0,9.894e-05,2]
[348500548,1736590239966,-500.0,9.894e-05,2]
[348500549,1736590239976,-500.0,9.894e-05,2]
[348500550,1736590239985,-500.0,9.894e-05,2]
[348500551,1736590239994,-500.0,9.894e-05,2]
[348500552,1736590240004,-500.0,9.894e-05,2]
[348500553,1736590240013,-500.0,9.894e-05,2]
[348500554,1736590240024,-500.0,9.894e-05,2]
[348500555,1736590240034,-500.0,9.894e-05,2]
[348500556,1736590240044,-500.0,9.894e-05,2]
[348500557,1736590240054,-500.0,9.894e-05,2]
[348500558,1736590240065,-500.0,9.894e-05,2]
[348500559,1736590240079,-500.0,9.894e-05,2]
[348500560,1736590240089,-500.0,9.894e-05,2]
[348500561,1736590240098,-500.0,9.894e-05,2]
[348500562,1736590240108,-500.0,9.894e-05,2]
[348500563,1736590240118,-500.0,9.894e-05,2]
[348500564,1736590240127,-500.0,9.894e-05,2]
[348500565,1736590240138,-500.0,9.894e-05,2]
[348500566,1736590240148,-500.0,9.894e-05,2]
[348500567,1736590240157,-500.0,9.894e-05,2]
[348500568,1736590240167,-500.0,9.894e-05,2]
[348500569,1736590240177,-500.0,9.894e-05,2]
[348500570,1736590240187,-500.0,9.894e-05,2]
[348500571,1736590240197,-500.0,9.894e-05,2]
[348500572,1736590240206,-500.0,9.894e-05,2]
[348500573,1736590240215,-500.0,9.894e-05,2]
[348500574,1736590240225,-500.0,9.894e-05,2]
[348500575,1736590240234,-500.0,9.894e-05,2]
[348500576,1736590240244,-500.0,9.894e-05,2]
[348500578,1736590240253,-500.0,9.894e-05,2]
[348500580,1736590240262,-500.0,9.894e-05,2]
[348500581,1736590240272,-500.0,9.894e-05,2]
[348500584,1736590240281,-500.0,9.894e-05,2]
[348500585,1736590240291,-500.0,9.894e-05,2]
[348500587,1736590240301,-500.0,9.894e-05,2]
[348500588,1736590240310,-500.0,9.894e-05,2]
[348500589,1736590240320,-500.0,9.894e-05,2]
[348500590,1736590240329,-500.0,9.894e-05,2]
[348500591,1736590240339,-500.0,9.894e-05,2]
[348500592,1736590240348,-500.0,9.894e-05,2]
[348500593,1736590240357,-500.0,9.894e-05,2]
[348500594,1736590240367,-500.0,9.894e-05,2]
[348500595,1736590240376,-500.0,9.894e-05,2]
[348500596,1736590240385,-500.0,9.894e-05,2]
[348500597,1736590240394,-500.0,9.894e-05,2]
[348500598,1736590240404,-500.0,9.894e-05,2]
[348500599,1736590240413,-500.0,9.894e-05,2]
[348500600,1736590240423,-500.0,9.894e-05,2]
[348500601,1736590240432,-500.0,9.894e-05,2]
[348500602,1736590240442,-500.0,9.894e-05,2]
[348500603,1736590240451,-500.0,9.894e-05,2]
[348500604,1736590240460,-500.0,9.894e-05,2]
[348500605,1736590240470,-500.0,9.894e-05,2]
[348500606,1736590240479,-500.0,9.894e-05,2]
[348500607,1736590240488,-500.0,9.894e-05,2]
[348500608,1736590240498,-500.0,9.894e-05,2]
[348500609,1736590240507,-500.0,9.894e-05,2]
[348500610,1736590240516,-500.0,9.894e-05,2]
[348500611,1736590240526,-599.62408842,9.894e-05,2]
[348500612,1736590240538,-500.0,9.894e-05,2]
[348500613,1736590240548,-500.0,9.894e-05,2]
[348500614,1736590240557,-500.0,9.894e-05,2]